Cogmind - Beta 17 @@@ ROGUE MODE // 2026.07.04 @ 01:27:22 Player: DizzyWaters Result: Destroyed by Y-45 Defender with Heavy Assault Rifle Performance ------------- Evolutions (1) 500 Regions Visited (3) 600 Robots Destroyed (31) 155 Value Destroyed (494) 494 Prototype IDs (0) 0 Alien Tech Used (0) 0 Bonus (0) 0 TOTAL SCORE: 1749 Bonus ------- None Cogmind --------- Core Integrity 0/400 Matter 300/300 Energy 7/100 System Corruption 0% Temperature Cool (9) Movement Core (800) Ox15 Location -9/Materials Parts ------- > --- POWER (1) -------- (None) > --- PROPULSION (2) --- (None) > --- UTILITY (4) ------ High-capacity Storage Unit Structural Scanner Actuator Array > --- WEAPON (2) ------- (None) > --- INVENTORY (20) --- Compact Wheel Compact Wheel Heat Sink Advanced Weight Redist. System Terrain Scan Processor Seismic Detector Targeting Computer Weapon Shielding Improved Light Armor Plating Reflective Plating Tractor Beam Light Assault Rifle Light Cannon Improved Grenade Launcher Mining Laser Mining Claw Peak State ------------ > --- POWER ------------ Light Ion Engine > --- PROPULSION ------- Light Treads > --- UTILITY ---------- High-capacity Storage Unit Structural Scanner Improved Terrain Scanner Actuator Array > --- WEAPON ----------- Beamcaster Makeshift Spear > --- INVENTORY -------- Compact Wheel Heat Sink Advanced Weight Redist. System Terrain Scan Processor Seismic Detector Targeting Computer Weapon Shielding Improved Light Armor Plating Reflective Plating Tractor Beam Light Assault Rifle Light Cannon Improved Grenade Launcher Mining Laser Mining Claw [Rating: 21] Favorites ----------- Power Light Ion Engine Engine Light Ion Engine Propulsion Compact Wheel Treads Light Treads Wheel Compact Wheel Utility High-capacity Storage Unit Device Structural Scanner Storage High-capacity Storage Unit Weapon Assault Rifle Energy Gun EM Pulse Gun Ballistic Gun Assault Rifle Launcher Grenade Launcher Slashing Weapon Mining Claw Piercing Weapon Makeshift Spear Build | -11 -10 -10 -9 ------- Run | Yrd Mat Min Mat Slots Evolved 2 | . . . 2 Power . | . . . . Propulsion . | . . . . Utility 2 | . . . 2 Weapon . | . . . . Parts Attached 24 | 5 10 3 6 Power 5 | 1 2 1 1 Engine 5 | 1 2 1 1 Core . | . . . . Reactor . | . . . . Propulsion 6 | 2 1 1 2 Treads 2 | . . . 2 Leg . | . . . . Wheel 4 | 2 1 1 . Hover . | . . . . Flight . | . . . . Utility 5 | 1 2 . 2 Device 3 | . 1 . 2 Storage 2 | 1 1 . . Processor . | . . . . Hackware . | . . . . Protection . | . . . . Artifact . | . . . . Weapon 8 | 1 5 1 1 Energy Gun 2 | . 1 . 1 Energy Cannon . | . . . . Ballistic Gun 3 | 1 2 . . Ballistic Cannon . | . . . . Launcher 1 | . 1 . . Special Weapon . | . . . . Impact Weapon . | . . . . Slashing Weapon 1 | . 1 . . Piercing Weapon 1 | . . 1 . Special Melee Weapon . | . . . . Unidentified Prototypes . | . . . . Parts Lost 11 | . 3 1 7 Power 2 | . 1 . 1 Propulsion 3 | . . 1 2 Utility 1 | . . . 1 Weapon 5 | . 2 . 3 Highest Loss Streak 7 | . 1 1 7 To Critical Strikes . | . . . . Average Backups 9 | 1 5 12 17 Power 1 | . 1 1 1 Propulsion 1 | . . 1 2 Utility 3 | . 1 4 8 Weapon 3 | . 2 5 5 Tool/Special . | . . . . Unused Backups 15 | . 3 3 9 Power 1 | . 1 . . Propulsion 3 | . 1 1 1 Utility 7 | . 1 1 5 Weapon 4 | . . 1 3 Tool/Special . | . . . . Average Slot Usage (%) 91 | . 87 99 89 Engine 12 | . 12 14 8 Treads 2 | . . . 10 Wheel 23 | . 27 27 7 Device 13 | . 5 14 31 Storage 16 | . 19 14 11 Energy Gun 3 | . 5 . 1 Ballistic Gun 11 | . 11 14 8 Slashing Weapon 1 | . 2 . . Piercing Weapon 5 | . . 13 9 Peak Build Rating 21 | 5 8 13 21 Average Rating 9 | 3 6 11 17 On Entrance 6 | . 5 8 13 Avg Prop Armor Cover (%) . | . . . . Naked Turns . | . . . . Heaviest Build 54 | 9 52 48 54 Greatest Support 40 | 32 32 32 40 Greatest Overweight (x) 17 | . 2 2 17 Average Overweight (x) . | . . 1 1 Largest Inventory Capacity 20 | 8 20 20 20 Average Capacity 18 | 7 17 20 20 Most Carried 20 | 4 12 20 20 Average Carried 9 | 1 5 12 17 Final Capacity 20 | 8 20 20 20 Final Carried 20 | 1 9 20 16 Class Distribution -------------------- 82% | Mutant 17% | Scavenger-Mutant Dominant Class ---------------- Mutant | -10/Materials Mutant | -10/Mines Scavenger-Mutant | -9/Materials Resources | -11 -10 -10 -9 ----------- Run | Yrd Mat Min Mat Matter Collected 574 | 250 174 100 50 Remotely . | . . . . Salvage Created 773 | . 268 424 81 Parts 67 | . 37 24 6 Haulers Intercepted . | . . . . Recyclers Shooed . | . . . . Parts Field Recycled . | . . . . Retrieved Matter . | . . . . Parts Self-Destructed . | . . . . Prevented . | . . . . Parts Restored . | . . . . Kills | -11 -10 -10 -9 ------- Run | Yrd Mat Min Mat Combat Hostiles Destroyed 20 | . 13 4 3 Melee 7 | . . 4 3 Guns 9 | . 9 . . AOE 4 | . 4 . . Classes Destroyed 8 | . 5 3 . Worker 2 | . 1 1 . Builder 2 | . 2 . . Tunneler 1 | . . 1 . Recycler 3 | . . 3 . Watcher 3 | . 3 . . Swarmer 14 | . 9 3 2 Grunt 4 | . 4 . . Sentry 2 | . . 1 1 Best Kill Streak 5 | . 5 4 2 Combat Bots Only 3 | . 3 3 2 Max Kills in Single Turn 2 | . 2 1 1 Gunslinging . | . . . . Exploded 1 | . 1 . . Melee 1 | . . 1 1 Uniques/NPCs Destroyed . | . . . . Combat | -11 -10 -10 -9 -------- Run | Yrd Mat Min Mat Hostile Shots Fired 185 | . 63 28 94 Missed 46 | . 21 8 17 Hits 139 | . 42 20 77 Projectile 139 | . 42 20 77 Critical Strikes 7 | . 2 . 5 Part Disruptions 1 | . 1 . . Damage Taken 1812 | . 484 223 1105 Core 630 | . 111 112 407 Absorbed by Shields . | . . . . Regen/Repaired (Parts) 33 | . 33 . . Core Remaining (%) 55 | 100 . 10 . Volleys Fired 42 | . 37 2 3 Largest 2 | . 2 1 1 Hottest 75 | . 60 20 75 Shots Fired 62 | . 57 2 3 Gun 55 | . 50 2 3 Cannon . | . . . . Launcher 7 | . 7 . . Special . | . . . . Kinetic 35 | . 33 2 . Thermal 3 | . . . 3 Explosive 7 | . 7 . . Electromagnetic 17 | . 17 . . Robot Hit Streak 4 | . 4 . 1 Robot Miss Streak 3 | . 3 2 3 Penetration Max . | . . . . Secondary Targets 1 | . 1 . . Max Gunslinging Chain 1 | . 1 . . Shots Hit Robots 58 | . 30 18 10 Core Hits 42 | . 30 9 3 Critical Kills 1 | . 1 . . Critical Parts Destroyed . | . . . . Critical Strikes 3 | . 1 1 1 Destroy 1 | . 1 . . Impale 2 | . . 1 1 Melee Attacks 43 | . 9 22 12 Impact . | . . . . Slashing 9 | . 9 . . Piercing 34 | . . 22 12 Sneak Attacks 9 | . 1 7 1 Combat Hostiles . | . . . . Follow-up Attacks . | . . . . Damage Inflicted 2009 | . 968 726 315 Guns 299 | . 277 . 22 Cannons . | . . . . Explosions 618 | . 618 . . Melee 1091 | . 73 726 292 Ramming 1 | . . . 1 Kinetic 150 | . 150 . . Thermal 94 | . 72 . 22 Explosive 546 | . 546 . . Electromagnetic 127 | . 127 . . Impact . | . . . . Slashing 73 | . 73 . . Piercing 1018 | . . 726 292 Highest Corruption 1 | . 1 1 . Average Corruption 1 | . 1 1 . Corruption Purged . | . . . . Corruption Blocked . | . . . . Effects 6 | . 3 3 . Message Errors 3 | . 2 1 . Matter Fused 1 | . 1 . . Data Loss (minor) 2 | . . 2 . Overload Shots . | . . . . Overflow Damage 123 | . 22 61 40 Projectiles . | . . . . Explosions 19 | . 19 . . Melee 104 | . 3 61 40 Knockbacks . | . . . . Impact . | . . . . Kinetic . | . . . . Secondary . | . . . . Self-Inflicted Damage 28 | . 28 . . Shots 1 | . 1 . . Rammed 3 | . . . 3 Targets Rammed 3 | . . . 3 Kicked . | . . . . Crushed . | . . . . Highest Temperature 87 | . 43 4 87 Average Temperature 25 | . 22 3 44 Received Heat Transfer 624 | . 150 87 387 Siege Activations . | . . . . Martial Activations . | . . . . Shielding Activations . | . . . . Robots Disrupted . | . . . . Combat Hostiles . | . . . . Robots Corrupted . | . . . . Combat Hostiles . | . . . . Parts Fried . | . . . . Impact Corruptions . | . . . . Robots Melted . | . . . . Combat Hostiles . | . . . . Parts Melted . | . . . . Heat Transferred 137 | . 100 . 37 Parts Sabotaged . | . . . . Parts Stolen . | . . . . Parts Stripped . | . . . . Power Chain Reactions 1 | . 1 . . Alert | -11 -10 -10 -9 ------- Run | Yrd Mat Min Mat Maximum Alert Level 1 | . 1 . . Low Security (%) 97 | 100 95 100 100 Level 1 2 | . 4 . . Level 2 . | . . . . Level 3 . | . . . . Level 4 . | . . . . Level 5 . | . . . . High Security . | . . . . Max Security . | . . . . Peak Influence 212 | . 212 64 35 Initial 64 | . . 64 . Average 48 | . 83 22 5 Influence Increases 613 | . 413 115 85 Destroy 0b10 Robot/C 400 | . 260 80 60 Destroy 0b10 Robot/NC 55 | . 30 25 . Destroy Leader 76 | . 56 10 10 Disable Machine 45 | . 30 . 15 Destroy Structure 37 | . 37 . . Influence Decreases 613 | . 247 281 85 Entered New Map 102 | . . 102 . Time Decay 446 | . 217 179 50 Lost Part 65 | . 30 . 35 Squads Dispatched 2 | . 1 1 . Investigation 1 | . . 1 . Extermination . | . . . . Reinforcement 1 | . 1 . . Assault . | . . . . Garrison . | . . . . Intercept . | . . . . Searches Triggered . | . . . . Construction Impeded . | . . . . Haulers Reinforced . | . . . . Active Scanning Responses . | . . . . Cargo Convoy Interrupts . | . . . . Stealth | -11 -10 -10 -9 --------- Run | Yrd Mat Min Mat Distress Signals 1 | . 1 . . Communications Jammed . | . . . . Distress Signals . | . . . . Times Spotted 38 | . 22 8 8 Peak Tracking Total 5 | . 5 3 4 Tactical Retreats . | . . . . Traps | -11 -10 -10 -9 ------- Run | Yrd Mat Min Mat Traps Triggered 3 | . 3 . . Indirectly . | . . . . Trap Hack Attempts . | . . . . Triggered . | . . . . Disarmed . | . . . . Reprogrammed . | . . . . Reused . | . . . . Traps Extracted . | . . . . Installed . | . . . . Triggered . | . . . . Machines | -11 -10 -10 -9 ---------- Run | Yrd Mat Min Mat Machines Disabled 3 | . 2 . 1 Max in Single Turn 1 | . 1 . 1 Machines Repaired . | . . . . Machines Dismantled . | . . . . Machines Sabotaged . | . . . . Overloaded Fab Kills . | . . . . Hacking | -11 -10 -10 -9 --------- Run | Yrd Mat Min Mat Machines Accessed 7 | . 6 1 . Terminals 4 | . 4 . . Fabricators . | . . . . Repair Stations 1 | . 1 . . Recycling Units 1 | . 1 . . Scanalyzers . | . . . . Garrison Access . | . . . . Total Hacks 10 | . 9 1 . Successful 5 | . 4 1 . Failed 5 | . 5 . . Catastrophic . | . . . . Database Lockouts . | . . . . Manual . | . . . . Terminals 6 | . 6 . . Fabricators . | . . . . Repair Stations 2 | . 2 . . Recycling Units 1 | . 1 . . Scanalyzers . | . . . . Garrison Access . | . . . . Terminal Hacks 2 | . 1 1 . Open Door 1 | . . 1 . Surveillance Status 1 | . 1 . . Fabricator Hacks . | . . . . Repair Station Hacks 2 | . 2 . . Scan Component 1 | . 1 . . Repair 1 | . 1 . . Recycling Unit Hacks 1 | . 1 . . Retrieve Components 1 | . 1 . . Scanalyzer . | . . . . Garrison Access Hacks . | . . . . Unauthorized Hacks . | . . . . Terminals . | . . . . Fabricators . | . . . . Repair Stations . | . . . . Recycling Units . | . . . . Scanalyzers . | . . . . Garrison Access . | . . . . Data Cores Recovered . | . . . . Used . | . . . . Hacking Detections 3 | . 3 . . Full Trace Events . | . . . . Feedback Events . | . . . . Feedback Blocked . | . . . . Robot Schematics Acquired . | . . . . Robots Built . | . . . . Authchips . | . . . . Time . | . . . . Total Robot Build Rating . | . . . . Part Schematics Acquired . | . . . . Parts Built . | . . . . Authchips . | . . . . Time . | . . . . Total Part Build Rating . | . . . . Part Studies Acquired . | . . . . Parts Repaired 1 | . 1 . . Time 26 | . 26 . . Parts Recycled . | . . . . Recycled Matter . | . . . . Retrieved Matter . | . . . . Retrieved Components . | . . . . Parts Scanalyzed . | . . . . Part Schematics Acquired . | . . . . Parts Damaged . | . . . . Bothacking | -11 -10 -10 -9 ------------ Run | Yrd Mat Min Mat Used RIF Installer . | . . . . Robots Hacked . | . . . . Non-combat . | . . . . Combat . | . . . . Robot Hacks Applied . | . . . . Relay Couplers Released . | . . . . Fabnet Peak Effective % . | . . . . Robots Rewired . | . . . . Allies Hacked . | . . . . Hacks Repelled . | . . . . Allies | -11 -10 -10 -9 -------- Run | Yrd Mat Min Mat Total Allies . | . . . . Largest Group . | . . . . Highest-Rated Group . | . . . . Highest-Rated Ally . | . . . . Total Orders . | . . . . Ally Attacks . | . . . . Total Damage . | . . . . Kills . | . . . . Allies Corrupted . | . . . . Allies Melted . | . . . . Intel | -11 -10 -10 -9 ------- Run | Yrd Mat Min Mat Active Infowar (turns) 1102 | . 316 475 311 Terrain 279 | . . . 279 Structural 1102 | . 316 475 311 Robot Analysis Total . | . . . . Derelict Logs Recovered . | . . . . Drone Launches . | . . . . Drone Recoveries . | . . . . Exploration | -11 -10 -10 -9 ------------- Run | Yrd Mat Min Mat Turns Passed 1629 | 42 801 475 311 Spaces Moved 1103 | 35 579 370 119 Core 10 | 8 . . 2 Treads 51 | . . . 51 Legs . | . . . . Wheels 1042 | 27 579 370 66 Hover . | . . . . Flight . | . . . . Fastest Speed 50 | 50 100 105 120 Average Speed 115 | 88 107 107 185 Slowest Speed 900 | 100 130 130 900 Overloaded Moves . | . . . . Propulsion Burnouts . | . . . . Robots Hopped . | . . . . Potential Cave-ins . | . . . . Cave-ins Triggered . | . . . . Exploration Rate (%) 35 | 4 74 55 9 Regions Visited 3 Branch Regions 1 Pre-discovered Areas . | . . . . Known Exits Taken . | . . . . Unknown Exits Taken 3 | 1 1 1 . Scrap Searched 1 | . . 1 . Spaces Dug 1 | . 1 . . Terrain Destroyed 44 | . 44 . . Melee 1 | . 1 . . Projectile . | . . . . AOE 43 | . 43 . . Terrain Rammed . | . . . . Walls Destroyed . | . . . . Machines Disabled . | . . . . Actions | -11 -10 -10 -9 --------- Run | Yrd Mat Min Mat Total 1334 | 45 690 423 176 Wait 56 | . 28 4 24 Move 1100 | 34 578 369 119 Hop . | . . . . Pick Up 49 | 6 22 17 4 Fast Attach . | . . . . Attach 19 | 5 10 1 3 Detach . | . . . . Swap 8 | . 2 3 3 Drop 14 | . 4 5 5 Fire 42 | . 37 2 3 Melee 43 | . 9 22 12 Ram 3 | . . . 3 Kick . | . . . . Crush . | . . . . Escape Stasis . | . . . . Rewire . | . . . . Trap . | . . . . Miscellaneous . | . . . . Route ------- -11/Scrapyard -10/Materials (discovered 3 exits: [*Mat x2] / *Min) -10/Mines (discovered 2 exits: [*Mat x2]) -9/Materials History --------- Turn | Location | Event 22 | -11/Scrapyard | Discovered new exit (range 15) 43 | -11/Scrapyard | Entered Materials 173 | -10/Materials | Discovered new exit (range 4) 292 | -10/Materials | Repaired Grenade Launcher 303 | -10/Materials | Build established: Mutant 572 | -10/Materials | Discovered new exit (range 14) 743 | -10/Materials | Discovered new exit (range 16) 844 | -10/Materials | Entered Mines 858 | -10/Mines | A weapon hastily lodged in a ceiling crevice suddenly fell to the ground 891 | -10/Mines | Met a Derelict bent on vengeance 1152 | -10/Mines | Discovered new exit (range 8) 1198 | -10/Mines | Core integrity fell below 50% 1267 | -10/Mines | Discovered new exit (range 5) 1275 | -10/Mines | Met a Derelict shopkeep closing up shop 1283 | -10/Mines | Core integrity fell below 20% 1286 | -10/Mines | Assembled infested the area 1291 | -10/Mines | Assisted by a Guerilla fighting off Assembled 1319 | -10/Mines | Entered Materials 1319 | -9/Materials | Evolved 2 slots: Utility x2 1592 | -9/Materials | Core integrity fell below 50% 1622 | -9/Materials | Core integrity fell below 20% 1630 | -9/Materials | Destroyed by Y-45 Defender with Heavy Assault Rifle Last Messages --------------- 01549_ Destroyed Imp. Ion Engine. 01549_ Critical hit (Burn: +37). 01553_ Assault Rifle destroyed. 01567_ Y-45 Defender destroyed. 01573_ Lgt. Treads destroyed. 01574_ Acquired Heat Sink. 01576_ Repair Station disabled. 01576_ Backup Laser I tumbles out of repair station. 01576_ Backup Plating I tumbles out of repair station. 01579_ Lgt. Ion Engine destroyed. 01585_ Critical hit (Burn: +37). 01588_ Lgt. Treads destroyed. 01591_ Acquired Com. Wheel. 01594_ Mak. Spear destroyed. 01600_ Imp. Terrain Scanner destroyed. 01601_ Slammed into Y-45 Defender. 01606_ Beamcaster destroyed. 01610_ Slammed into Y-45 Defender. 01615_ Critical hit (Burn: +37). 01618_ Slammed into Y-45 Defender. Map ----- +----------------------------------------------------+ | ?????????????????????????????????? | | ?????????????????????????????????? | | ?????????????????????????????????? | | ?????????????????????????????????? | | ?????????????????????????????????? | | ?????????????????????????????????? | | ?????????????????????????????????? | | ?????????????????????????????????? | | ?????????????????????????????????? | | ?????????????????????????????????? | | ?## ?????????????????????????????? | | ?## #????????????##????????????? | | ?## ???????????????????????????? | | ?## # ??????????????#??????????? | | ?## ##???????#?????????????????? | | ?## # ??????##?????????????????? | | ?## + ? ???#???????????????????? | | ?## # ?????????????????????????? | | ?## # ????????????#????????????? | | ?## # ? ???????????????#???????? | | ?## # ?????????????#????#??????? | | ?## ############???????????????? | | ### ###########????????????????? | | ### ##=!! ![m##?###????#???????? | | ## #*!! !###????????????????? | | ## !#=@%! ###????#??#????????? | | ## %/Y"[ [ ##?????????????????? | | ## #="R" ##?????????????????? | | ## #%""" ##?????????????????? | | #### ###########??????#??????????? | | #### ###########?????##??????????? | | ??## ##??????????????????????????? | | #?## ##?#############????????????? | | ??##=##?############?????????????? | | ??##*##?## ##????????????#? | | ??##[##### ##?#??#????????? | | ??##*##?## ###???#?#??????? | | ??##%##?## """ ##?????????????? | | ??##=##### """"" ##?????????????? | | ??##%##### """"" ##?????????????? | | #?##=##### """"" ##?#????#??????? | | ?###*[!*%+[ """ ##???#?????????? | | ?### ##### ##?????????????? | | #?## #########+#####???##????????? | | ??## ####### !###?????????????? | | ?### ##????#?????????? | | ??## " ##?#????????????? | | #?## ##??????????????? | | ??###### ### ##??????????????? | | ??######+#### ###??????????????? | +----------------------------------------------------+ Best States ------------- Heat Dissipation 28 Energy Generation 10 Energy Capacity 125 Matter Stores 300 Matter Capacity 300 Sight Range 16 Terrain Scan Range 16 Terrain Scan Density 10 Evasion (%) 40 Recoil Reduction 2 Item Schematics ----------------- None Robot Schematics ------------------ None Fabricated ------------ Nothing Repaired ---------- Grenade Launcher | 45% | -10/Materials Studied --------- None Alien Tech Used ----------------- None Achievements -------------- None Challenges ------------ None Game ------ Seed VisualDisruptorWartreads Manual? 0 Play Time 00:20:25 Cumulative 31.3 hours Start 2026.07.03 @ 23:41:05 End 2026.07.04 @ 01:27:22 Sessions 1 Manual Loads 0 Difficulty Rogue Special Mode None Game No. 27 Rogue 6 Adventurer 21 Explorer 0 Win Type - Total 0 Types 0/0/0/0/0/0/0/0/0/0 Lore% 10 Gallery% 22 Achievement% 17 Wizard Run 0 Options --------- Layout 0 ASCII 0 Keyboard 1 Movement Vi Keybinds 0 Fullscreen 1 Font 18/SmallcapsGlow Map View 76x50 Zoom Use 0% Tactical HUD 1 Map Filters NONE Filters NONE Steam 1 RUN: fdca47e8-97df-4189-80e8-2e58dc6ba71a